bitfinex/quotes_ETHUSD_20241105
["timestamp","ask_amount","ask_price","bid_price","bid_amount"]
[1730773918694,3.0,2413.8,2413.5,4.14333]
[1730773918897,3.0,2414.0,2413.7,0.8038]
[1730773919104,3.0,2414.0,2413.7,4.94681]
[1730773919543,3.0,2414.0,2413.7,0.8038]
[1730773920047,7.1425,2414.0,2413.7,0.8038]
[1730773920257,0.7968,2414.1,2413.8,0.28275601]
[1730773920258,3.7968,2414.1,2413.8,0.28275601]
[1730773920417,9.1325698,2414.3,2413.8,4.14274]
[1730773920622,9.1325398,2414.3,2413.9,0.28274997]
[1730773920845,0.8483598,2414.3,2413.7,2.19051294]
[1730773921013,0.7593,2413.9,2413.8,0.28293044]
[1730773921349,0.7593,2413.9,2413.4,4.89341]
[1730773921653,4.90206,2413.9,2413.5,0.73586034]
[1730773921862,4.90206,2413.9,2413.6,0.28301841]
[1730773921863,3.0,2413.8,2413.6,0.28301841]
[1730773922149,11.28581,2413.8,2413.3,4.14369]
[1730773922329,3.0,2413.8,2413.4,4.87937833]
[1730773922531,3.0,2414.1,2413.7,4.14301]
[1730773922734,3.0,2414.1,2413.8,0.28302148]
[1730773922933,3.0,2414.1,2413.7,4.14301]
[1730773923236,3.0,2414.1,2413.8,0.28296104]
[1730773923407,3.0,2414.1,2413.5,4.95412]
[1730773923408,3.0,2413.9,2413.5,4.95412]
[1730773923605,7.93802198,2414.1,2413.6,4.87879308]
[1730773923842,7.14233,2414.1,2413.7,0.28291625]
[1730773924043,7.14233,2414.1,2413.6,4.14318]
[1730773924275,4.1426,2414.0,2413.7,0.28287024]
[1730773924405,4.14269,2413.9,2413.5,0.8109]
[1730773924608,4.14269,2413.9,2413.6,0.28282678]
[1730773924832,4.14269,2413.9,2413.7,0.28282678]
[1730773925043,5.271206,2413.9,2413.5,0.8109]
[1730773925276,6.097806,2413.9,2413.6,0.28286187]
[1730773925420,3.0,2414.0,2413.6,4.14318]
[1730773925753,3.0,2414.0,2413.7,0.28285766]
[1730773925754,7.14258,2414.0,2413.7,0.28285766]
[1730773925919,7.14258,2414.0,2413.5,4.95415]
[1730773926113,7.14258,2414.0,2413.6,0.28289955]
[1730773926418,0.16472381,2413.9,2413.7,0.28289955]
[1730773926625,0.16472381,2413.9,2413.8,0.28289955]
[1730773926831,0.16472381,2413.9,2413.6,8.28615]
[1730773927061,0.16472381,2413.9,2413.7,0.28288211]
[1730773927362,0.16472381,2413.9,2413.6,8.28614]
[1730773927664,0.16472381,2413.9,2413.7,0.28287986]
[1730773927960,0.16472381,2413.9,2413.6,4.14305]
[1730773928166,0.16472381,2413.9,2413.7,0.28285277]
[1730773928341,0.16472381,2413.9,2413.6,8.92021629]
[1730773928536,0.16472381,2413.9,2413.7,0.2829037]
[1730773928743,0.16472381,2413.9,2413.6,8.92021629]
[1730773928939,0.16472381,2413.9,2413.7,0.28307034]
[1730773929135,0.16472381,2413.9,2413.6,8.92021629]
[1730773929463,0.16472381,2413.9,2413.7,5.39916719]
[1730773929639,0.16472381,2413.9,2413.7,5.11611163]
[1730773930308,0.16472381,2413.9,2413.8,4.4258893]
[1730773930430,3.0,2414.2,2413.9,4.14266]
[1730773931643,11.5314298,2414.3,2414.0,1.38671294]
[1730773931644,7.3893598,2414.3,2414.0,1.38671294]
[1730773931871,0.0593598,2414.3,2414.2,6.31376294]
[1730773932182,0.0593598,2414.3,2414.2,1.7356684]
[1730773933352,0.0593598,2414.3,2414.2,10.17722367]
[1730773933686,0.0593598,2415.5,2415.0,0.8285]
[1730773933887,0.0593598,2415.5,2415.2,4.1404]
[1730773934055,0.0593598,2415.5,2415.1,4.14049]
[1730773934947,3.0593598,2415.5,2415.1,4.14049]
[1730773935138,0.0593598,2415.5,2415.1,8.28101]
[1730773935574,0.0593598,2415.5,2415.2,4.14042]
[1730773935844,0.0593598,2415.5,2415.1,4.14049]
[1730773936076,0.0593598,2415.5,2415.3,4.14024]
[1730773936574,0.0593598,2415.5,2415.1,4.14049]
[1730773937078,0.0593598,2415.5,2415.1,8.28101]
[1730773937276,0.0593598,2415.5,2415.1,4.14049]
[1730773937886,0.0593598,2415.5,2415.1,8.28101]
[1730773938258,0.0593598,2415.5,2415.2,4.1403]
[1730773938460,0.0593598,2415.5,2415.4,4.9291]
[1730773938651,0.0593598,2415.5,2415.4,5.56188355]
[1730773938862,0.0593598,2415.5,2415.4,5.5618784]
[1730773939154,0.0593598,2415.5,2415.4,5.84269423]
[1730773939472,0.0593598,2415.5,2415.4,6.8426224]
[1730773939786,4.1973398,2416.7,2416.2,4.13858]
[1730773939787,0.0593598,2416.7,2416.2,4.13858]
[1730773940088,4.1972298,2416.7,2416.2,4.13858]
[1730773940308,4.1972298,2416.7,2416.3,4.13848]
[1730773940309,0.16401822,2416.6,2416.3,4.13848]
[1730773940446,0.16401822,2416.6,2416.4,4.13835]
[1730773941182,0.16401822,2416.6,2416.5,4.13821]
[1730773941499,0.16401822,2416.6,2416.4,4.13826]
[1730773941659,0.16401822,2416.6,2416.2,4.13866]
[1730773941845,0.16401822,2416.6,2416.3,4.13855]
[1730773942040,0.16401822,2416.6,2416.2,4.13862]
[1730773942354,0.16401822,2416.6,2415.9,3.21484131]
[1730773942355,3.7877,2416.5,2415.9,3.21484131]
[1730773942572,0.80898782,2416.4,2416.0,4.13904]
[1730773942883,0.16438073,2416.4,2416.0,4.13904]
[1730773943387,0.16438073,2416.4,2415.9,3.21484131]
[1730773943585,3.0,2416.3,2415.8,4.95508]
[1730773944246,0.16438073,2416.2,2415.9,4.13911]
[1730773944661,4.13839,2416.4,2415.9,4.13924]
[1730773944880,0.16438073,2416.1,2415.9,4.13924]
[1730773945182,0.16438073,2416.0,2415.9,4.13924]
[1730773945433,0.16438073,2416.0,2415.9,4.2220133]
[1730773945691,3.7877,2416.5,2415.9,4.13913]
[1730773945989,0.792588,2416.4,2415.9,4.13913]
[1730773946279,0.95696873,2416.4,2415.9,8.27828]
[1730773946445,0.95696873,2416.4,2415.9,4.13913]
[1730773946648,3.0,2416.3,2415.8,0.8158]
[1730773946954,3.88830687,2416.3,2415.9,4.13921]
[1730773947169,0.16438073,2416.2,2415.9,4.13921]
[1730773947570,3.88830687,2416.3,2415.9,4.13921]
[1730773947772,0.16438073,2416.1,2416.0,4.13906]
[1730773947973,3.7876,2416.8,2416.3,4.1385]
[1730773948172,0.7876,2416.8,2416.4,4.13828]
[1730773948350,0.7876,2416.8,2416.3,4.1385]
[1730773948351,8.00537402,2417.0,2416.3,4.1385]
[1730773948546,12.14287402,2417.0,2416.3,8.27696]
[1730773948748,4.13755,2416.9,2416.3,4.13846]
[1730773949166,4.13755,2416.9,2416.3,4.13845]
[1730773949366,3.0593598,2416.7,2416.2,3.97314131]
[1730773949571,8.21694578,2416.7,2416.2,3.21484131]
[1730773949799,8.21694578,2416.7,2416.1,8.27761]
[1730773949972,8.21694578,2416.7,2416.1,4.1388]
[1730773950170,4.07907578,2416.7,2416.2,4.41767087]
[1730773950433,4.07907578,2416.7,2416.2,4.1386]
[1730773950966,1.23546858,2416.6,2416.0,0.7583]
[1730773951166,3.0,2416.4,2416.1,0.27914462]
[1730773951371,3.0,2416.4,2416.0,4.8973]
[1730773951574,4.13855,2416.3,2416.1,0.27919412]
[1730773951815,0.8168,2416.0,2415.5,1.31521608]
[1730773952018,0.8168,2416.0,2415.6,0.72622459]
[1730773952019,4.13927,2415.9,2415.6,0.72622459]
[1730773952319,4.13951,2415.8,2415.7,0.27951356]
[1730773952473,4.13969,2415.7,2415.3,0.44731942]
[1730773952664,8.27939,2415.7,2415.4,0.27957983]
[1730773952866,4.13969,2415.7,2415.1,5.02309154]
[1730773953170,4.13969,2415.7,2415.2,0.72700347]
[1730773953171,4.13978,2415.6,2415.2,0.72700347]
[1730773953366,3.8168,2415.5,2415.3,0.27961201]
[1730773953565,3.8168,2415.5,2415.4,0.27961201]
[1730773953788,3.8168,2415.5,2415.1,4.1405]
[1730773953995,7.95682,2415.5,2415.2,0.27984594]
[1730773954174,7.95682,2415.5,2415.3,0.27984594]
[1730773954508,7.95682,2415.5,2414.9,4.14085]
[1730773954703,7.95682,2415.5,2415.0,5.84296908]
[1730773954895,7.95682,2415.5,2415.1,0.72809771]
[1730773955096,7.95682,2415.5,2415.2,0.72809771]
[1730773955411,7.95682,2415.5,2415.0,4.554775]
[1730773955412,7.95682,2415.5,2415.3,0.28003287]
[1730773955611,7.95682,2415.5,2415.4,0.28003287]
[1730773955808,9.16647,2415.5,2415.4,0.28003287]
[1730773956310,9.33140917,2415.5,2415.4,0.28003287]
[1730773956894,9.33140917,2415.5,2414.9,4.14085]
[1730773957120,9.33140917,2415.5,2415.0,0.84106973]
[1730773957121,8.12175917,2415.5,2415.0,0.84106973]
[1730773957320,8.12175917,2415.5,2415.1,1.28963554]
[1730773957522,8.12175917,2415.5,2415.2,1.28963554]
[1730773957696,8.12175917,2415.5,2415.3,0.72891217]
[1730773957901,8.12175917,2415.5,2415.4,0.28034636]
[1730773958438,8.12175917,2415.5,2415.4,0.72956137]
[1730773960614,8.12175917,2415.5,2415.4,0.28034636]
[1730773960941,9.34791209,2415.5,2415.4,0.28034636]
[1730773961329,9.34791209,2415.5,2415.4,0.73060169]
[1730773962439,11.00571809,2415.5,2415.4,1.29401204]
[1730773962649,11.00571809,2415.5,2415.4,0.73060169]
[1730773963200,11.00571809,2415.5,2415.4,1.29398334]
[1730773964004,11.00571809,2415.5,2415.4,0.73060169]
[1730773964223,11.00571809,2415.5,2415.4,0.28034636]
[1730773964736,10.74066996,2415.5,2415.4,0.28034636]
[1730773965124,13.95551127,2415.5,2415.4,0.28034636]
[1730773965455,4.14112,2414.8,2414.6,0.46728872]
[1730773965620,4.14112,2414.8,2414.7,1.29708773]
[1730773966126,9.08437,2414.9,2414.7,1.29708773]
[1730773966455,4.14098,2414.9,2414.8,0.73312447]
[1730773966754,4.14098,2414.9,2414.8,1.29688034]
[1730773966953,7.14098,2414.9,2414.8,1.29688034]
[1730773967154,7.14098,2414.9,2414.8,0.73312447]
[1730773968158,7.14098,2414.9,2414.8,0.73275926]
[1730773968461,8.269159,2414.9,2414.8,0.73275926]
[1730773968662,8.269159,2414.9,2414.8,0.28182574]
[1730773968663,9.058959,2414.9,2414.8,0.28182574]
[1730773970220,4.14141,2414.7,2414.3,0.56363028]
[1730773970469,3.0,2414.6,2414.4,0.73248989]
[1730773970620,3.0,2414.6,2414.5,0.73248989]
[1730773971022,0.7898,2414.9,2414.5,0.73248989]
[1730773971224,3.0,2414.9,2414.6,6.15480088]
[1730773971444,0.16201836,2414.8,2414.7,0.73248989]
[1730773971840,3.0,2415.0,2414.7,0.73248989]
[1730773972039,0.16164568,2414.8,2414.6,5.42231099]
[1730773972244,3.0,2415.0,2414.7,0.73225004]
[1730773972444,3.0,2415.0,2414.8,0.73225004]
[1730773972735,3.0,2415.0,2414.6,5.42231099]
[1730773972736,3.0,2415.0,2414.9,0.28162989]
[1730773974348,3.0,2415.1,2414.9,0.28162989]
[1730773974575,3.0,2415.1,2415.0,0.28162989]
[1730773976070,3.0,2415.2,2415.0,0.28162989]
[1730773976284,3.0,2415.2,2415.1,0.28162989]
[1730773976457,7.14044,2415.2,2415.1,0.28162989]
[1730773976773,3.0,2415.1,2414.7,4.78771108]
[1730773977072,7.14062,2415.1,2414.8,1.33962366]
[1730773977277,7.14062,2415.1,2414.9,0.2818262]
[1730773977476,7.14062,2415.1,2415.0,0.2818262]
[1730773978161,3.0,2415.1,2415.0,0.2818262]
[1730773979263,7.14061,2415.1,2415.0,0.2818262]
[1730773980255,7.14061,2415.1,2415.0,0.73384601]
[1730773980454,7.14061,2415.1,2415.0,0.2818262]
[1730773980649,9.040615,2415.1,2415.0,0.2818262]
[1730773980864,3.0,2414.6,2414.5,0.56531627]
[1730773981070,7.91337,2414.6,2414.2,0.7608]
[1730773981391,7.91337,2414.6,2414.3,0.45276392]
[1730773981538,7.91337,2414.6,2414.4,1.301704]
[1730773981746,7.91337,2414.6,2414.5,0.73573363]
[1730773982142,9.11884,2414.6,2414.5,0.73573363]
[1730773982386,9.11884,2414.6,2414.5,0.28296971]
[1730773983588,4.14244,2414.1,2414.0,0.56646877]
[1730773983887,4.14244,2414.1,2414.0,1.30282449]
[1730773984191,4.14244,2414.1,2414.0,0.73635572]
[1730773984347,8.752902,2414.1,2414.0,0.73635572]
[1730773984680,8.752902,2414.1,2413.5,0.08286156]
[1730773984681,3.0,2414.0,2413.5,0.08286156]
[1730773984979,3.0,2414.1,2413.6,2.08869399]
[1730773985203,3.0,2414.1,2413.7,1.30219399]
[1730773985504,3.0,2414.2,2413.8,0.73601228]
[1730773985652,3.0,2414.2,2413.9,1.22390251]
[1730773985850,3.0,2414.2,2414.0,0.73601228]
[1730773986045,4.14176,2414.5,2414.1,0.2830793]
[1730773986046,3.0,2414.4,2414.1,0.2830793]
[1730773986245,7.14193,2414.4,2414.2,0.2830793]
[1730773986446,0.16139042,2414.3,2414.0,0.7671]
[1730773986681,0.16139042,2414.3,2414.1,0.7351165]
[1730773986881,0.16139042,2414.3,2414.2,0.28273235]
[1730773988092,3.0,2414.2,2414.0,0.7671]
[1730773988259,7.14217,2414.2,2414.1,0.73508416]
[1730773988447,7.14217,2414.2,2413.8,0.8154]
[1730773988448,3.0,2414.1,2413.8,0.8154]
[1730773988648,0.16139042,2414.2,2413.9,1.30111332]
[1730773988993,0.16139042,2414.1,2414.0,0.73539976]
[1730773989376,7.14199,2414.3,2414.0,0.73539976]
[1730773989546,7.14199,2414.3,2414.1,0.2828413]
[1730773989856,7.14199,2414.3,2414.2,0.2828413]
[1730773990287,8.350832,2414.3,2414.2,0.2828413]
[1730773991386,7.14199,2414.3,2414.2,0.2828413]
[1730773991597,4.1413,2414.7,2414.2,1.55893176]
[1730773991802,4.1413,2414.7,2414.3,0.2828413]
[1730773991968,4.14157,2414.6,2414.4,0.2828413]
[1730773992152,4.14157,2414.6,2414.5,0.2828413]
[1730773992352,4.1413,2414.7,2414.5,0.2828413]
[1730773992550,4.14107,2414.9,2414.6,0.2830282]
[1730773992793,4.1395,2415.8,2414.6,0.2830282]
[1730773992794,4.1405,2415.2,2414.7,1.1062282]
[1730773992996,4.1405,2415.2,2414.8,0.73570704]
[1730773993154,4.1405,2415.2,2414.9,0.2830282]
[1730773993155,4.14044,2415.2,2414.9,0.2830282]
[1730773993487,0.492824,2415.2,2414.4,0.832]
[1730773993691,0.492824,2415.2,2414.5,1.30176257]
[1730773993891,0.8206,2415.1,2414.6,0.73576673]
[1730773994053,0.8206,2415.1,2414.4,0.832]
[1730773994054,0.8206,2415.1,2414.7,0.28298244]
[1730773994250,7.14095,2414.9,2414.8,0.28298244]
[1730773994454,3.0,2414.9,2414.8,0.28298244]
[1730773995098,7.14095,2414.9,2414.8,0.28298244]
[1730773995297,7.14095,2414.9,2414.8,0.28314373]
[1730773995806,9.175783,2414.9,2414.8,0.28314373]
[1730773995950,4.1415,2414.6,2414.3,0.56638295]
[1730773996294,4.1415,2414.6,2414.1,4.61423147]
[1730773996295,3.0,2414.5,2414.4,0.73633624]
[1730773996852,3.0,2414.5,2414.4,0.28320148]
[1730773996853,7.92384,2414.5,2414.4,0.28320148]
[1730773998651,3.0,2414.1,2413.9,0.5666289]
[1730773999007,3.0,2414.1,2414.0,0.73661736]
[1730773999203,3.0,2414.1,2414.0,0.73668629]
[1730774001368,3.16119429,2414.1,2414.0,0.73668629]
[1730774001573,0.16119429,2414.1,2414.0,0.73668629]
[1730774001790,4.14158,2414.6,2414.1,4.14227]
[1730774002004,4.14158,2414.6,2414.2,0.73668629]
[1730774002313,4.14158,2414.6,2414.3,0.73668629]
[1730774002507,4.14158,2414.6,2414.4,0.28333611]
[1730774002677,4.14158,2414.6,2414.5,0.28333611]
[1730774002880,3.0,2414.5,2414.0,5.52052463]
[1730774003080,3.0,2414.5,2414.1,1.85549389]
[1730774003081,7.14174,2414.5,2414.1,1.85549389]
[1730774003306,7.14174,2414.5,2414.2,0.73671564]
[1730774003501,7.14174,2414.5,2414.3,0.2833474]
[1730774003713,7.14174,2414.5,2414.4,0.2833474]
[1730774004416,3.0,2414.5,2414.4,0.2833474]
[1730774005081,7.14164,2414.5,2414.4,0.2833474]
[1730774006091,4.658413,2414.5,2414.0,5.52043463]
[1730774006286,4.658413,2414.5,2414.1,0.73690996]
[1730774006287,3.0,2414.3,2414.1,0.73690996]
[1730774006486,3.0,2414.3,2414.2,0.28342486]
[1730774006717,8.8455053,2414.3,2414.2,0.28342486]
[1730774007501,8.8455053,2414.3,2413.6,0.7547]
[1730774007822,8.28457,2414.2,2413.7,1.304235]
[1730774007983,7.14235,2414.1,2413.8,1.30426087]
[1730774008327,7.14235,2414.1,2413.9,0.73716417]
[1730774008496,7.14235,2414.1,2414.0,0.28351991]
[1730774009482,8.44116453,2414.1,2414.0,0.28351991]
[1730774009729,8.44116453,2414.1,2413.3,1.28377131]
[1730774009730,5.10201453,2414.1,2413.3,1.28377131]
[1730774009900,5.10201453,2414.1,2413.3,4.95519]
[1730774009901,4.14298,2413.8,2413.3,4.95519]
[1730774010098,4.14298,2413.8,2413.4,0.73849973]
[1730774010287,4.14298,2413.8,2413.5,0.28403358]
[1730774010489,4.14301,2413.7,2413.6,0.28403358]
[1730774010691,7.14301,2413.7,2413.6,0.28403358]
[1730774010989,3.0,2413.7,2413.6,0.28403358]
[1730774011184,3.0,2413.6,2413.3,4.95517]
[1730774011487,3.0,2413.6,2413.4,0.28392267]
[1730774011687,7.1431,2413.7,2413.5,0.28392267]
[1730774012024,7.1431,2413.7,2412.9,3.68827601]
[1730774012025,4.14365,2413.4,2413.0,1.33910608]
[1730774012320,4.14365,2413.4,2413.1,0.73791835]
[1730774012321,8.28732,2413.4,2413.1,0.73791835]
[1730774012527,8.28732,2413.4,2413.0,0.7712]
[1730774012528,3.0,2413.3,2413.2,0.28380997]
[1730774012724,7.9561,2413.3,2413.2,0.28380997]
[1730774012928,4.14432,2413.0,2412.6,0.815]
[1730774013087,4.1441,2413.1,2412.6,0.815]
[1730774013303,4.14435,2413.0,2412.7,0.28398464]
[1730774013548,4.14435,2413.0,2412.6,0.815]
[1730774013716,4.14421,2413.0,2412.6,0.815]
[1730774014044,3.0,2413.0,2412.7,0.28368549]
[1730774014249,4.14439,2412.9,2412.6,0.815]
[1730774014404,4.14439,2412.9,2412.7,0.28346164]
[1730774014609,4.14439,2412.9,2412.6,0.815]
[1730774014610,7.14427,2413.0,2412.6,0.815]
[1730774014911,3.0,2413.0,2412.6,0.815]
[1730774015217,4.14415,2413.1,2412.7,4.42794787]
[1730774015218,3.0,2413.1,2412.7,4.42794787]
[1730774015405,3.0,2413.1,2412.7,4.14472]
[1730774015927,3.0,2413.1,2412.6,0.815]
[1730774015928,4.1444,2412.9,2412.6,0.815]
[1730774016136,8.28895,2412.9,2412.6,0.815]
[1730774016321,0.15811182,2412.8,2412.6,0.815]
[1730774016652,0.15811182,2412.8,2412.4,1.25520871]
[1730774016653,4.14481,2412.7,2412.4,1.25520871]
[1730774016855,4.1449,2412.6,2412.5,0.28320367]
[1730774017054,4.30310023,2412.6,2412.2,0.8021]
[1730774017218,3.0,2412.5,2412.2,0.8021]
[1730774017651,0.15804305,2412.4,2412.2,0.8021]
[1730774018471,0.15804305,2412.4,2412.0,4.95926]
[1730774018913,0.15804305,2412.4,2411.9,0.0593598]
[1730774018914,3.0,2412.3,2411.9,0.0593598]
[1730774019118,3.0,2412.1,2411.9,0.0593598]
[1730774019462,0.15765985,2412.0,2411.9,0.0593598]
[1730774019617,8.09778985,2412.0,2411.9,0.0593598]
[1730774020255,3.95185985,2412.0,2411.9,0.0593598]
[1730774020560,7.30358985,2412.0,2411.9,0.0593598]
[1730774021066,8.44853684,2412.0,2411.9,0.0593598]
[1730774022118,9.23793684,2412.0,2411.9,0.0593598]
[1730774023961,13.00277815,2412.0,2411.9,0.0593598]
[1730774024528,20.33277815,2412.0,2411.9,0.0593598]
[1730774024743,19.78277815,2412.0,2411.9,0.0593598]
[1730774024952,16.56793684,2412.0,2411.9,0.0593598]
[1730774026247,19.78277815,2412.0,2411.9,0.0593598]
[1730774026840,16.56793684,2412.0,2411.9,0.0593598]
[1730774028255,0.15765985,2412.0,2411.9,0.0593598]
[1730774029369,3.15765985,2412.0,2411.9,0.0593598]
[1730774030764,7.30358985,2412.0,2411.9,0.0593598]
[1730774031275,3.15765985,2412.0,2411.9,0.0593598]
[1730774031841,7.30358985,2412.0,2411.9,0.0593598]
[1730774033174,8.96378585,2412.0,2411.9,0.0593598]
[1730774033675,1.81785585,2412.0,2411.9,0.0593598]
[1730774033847,1.81785585,2412.0,2411.9,0.8816598]
[1730774034252,1.81785585,2412.0,2411.9,1.16345597]
[1730774034652,1.81785585,2412.0,2411.9,1.16345775]
[1730774034979,1.81785585,2412.0,2411.9,0.34115775]
[1730774035144,8.96378585,2412.0,2411.9,0.34135792]
[1730774036184,4.81785585,2412.0,2411.9,0.34135792]
[1730774036542,4.81785585,2412.0,2411.9,0.79300415]
[1730774036543,1.81785585,2412.0,2411.9,0.79300415]
[1730774036746,1.81785585,2412.0,2411.9,2.5387571]
[1730774037439,1.660196,2412.0,2411.9,2.5387571]
[1730774037866,1.81609651,2412.0,2411.9,2.5387571]
[1730774038090,1.81609651,2412.0,2411.9,0.8882598]
[1730774038284,1.81609651,2412.0,2411.9,2.18879558]
[1730774039978,0.15590051,2412.0,2411.9,6.33489558]
[1730774040183,0.802,2412.7,2411.9,6.33489558]
[1730774040184,4.94683,2412.7,2411.9,0.8882598]
[1730774040461,4.94683,2412.7,2412.2,4.14549]
[1730774040462,1.659773,2412.5,2412.2,4.14549]
[1730774040680,4.30108715,2412.6,2412.2,0.494739]
[1730774040884,4.14499,2412.6,2412.2,0.494739]
[1730774041093,0.15609715,2412.5,2412.3,1.30270984]
[1730774041403,3.0,2412.4,2412.0,5.03057899]
[1730774041556,4.65977,2412.6,2412.3,0.803]
[1730774041892,0.15609715,2412.5,2412.4,1.30379254]
[1730774042197,0.15609715,2412.5,2412.4,2.39080357]
[1730774043612,0.15609715,2412.5,2412.4,6.53604357]
[1730774043756,0.15609715,2412.5,2412.4,7.33534357]
[1730774044095,4.95647,2413.1,2412.5,4.14497]
[1730774044266,1.659513,2412.9,2412.7,0.8121]
[1730774044468,1.659513,2412.9,2412.8,1.30572306]
[1730774044996,3.0,2413.1,2412.8,1.30572306]
[1730774045205,3.0,2413.1,2412.9,1.30572306]
[1730774045357,3.0,2413.1,2413.0,0.73800526]
[1730774045554,7.937136,2413.1,2413.0,0.73800526]
[1730774046106,3.8121,2413.1,2413.0,0.73800526]
[1730774046270,3.8121,2413.1,2413.0,1.30575707]
[1730774046598,8.11223715,2413.1,2413.0,0.73800526]
[1730774047475,3.96819715,2413.1,2413.0,0.73800526]
[1730774048764,8.11223715,2413.1,2413.0,0.73800526]
[1730774048997,9.41655987,2413.1,2413.0,0.73800526]
[1730774049492,9.41655987,2413.1,2413.0,0.28384341]
[1730774049664,9.41655987,2413.1,2413.0,0.73783589]
[1730774050183,9.41655987,2413.1,2413.0,0.73777889]
[1730774050384,9.41655987,2413.1,2413.0,0.28366531]
[1730774051163,8.11223715,2413.1,2413.0,0.28366531]
[1730774051710,3.0,2413.0,2412.6,4.14488]
[1730774052009,0.15703085,2412.9,2412.7,1.30465236]
[1730774052308,0.15703085,2412.9,2412.8,0.73740009]
[1730774052477,0.15703085,2412.9,2412.8,1.49190009]
[1730774052668,0.15703085,2412.9,2412.8,6.69749228]
[1730774052868,0.8121,2413.1,2413.0,4.14421]
[1730774053093,0.8121,2413.1,2413.0,5.44877646]
[1730774053294,0.8121,2413.1,2413.0,6.20327646]
[1730774053804,0.8121,2413.1,2413.0,6.20309549]
[1730774054007,0.8121,2413.1,2413.0,3.19146524]
[1730774054213,0.8121,2413.1,2413.0,0.7545]
[1730774054407,0.8121,2413.1,2413.0,1.49171569]
[1730774054774,3.8121,2413.1,2413.0,0.28353974]
[1730774055080,7.14404,2413.1,2413.0,0.28353974]
[1730774055318,4.14421,2413.0,2412.4,0.8229]
[1730774055474,3.0,2412.9,2412.5,1.30445685]
[1730774055812,3.0,2412.9,2412.6,0.73728959]
[1730774056113,3.0,2412.9,2412.7,0.73728959]
[1730774056326,7.14417,2413.1,2412.8,0.28356816]
[1730774056614,7.14421,2413.0,2412.9,0.28356816]
[1730774056828,3.0,2413.0,2412.9,0.28356816]
[1730774057609,7.14421,2413.0,2412.9,0.28356816]
[1730774058683,3.0,2412.9,2412.4,9.65726193]
[1730774058985,4.14457,2412.8,2412.5,1.30545623]
[1730774059216,3.0,2412.7,2412.6,0.73785445]
[1730774059722,8.350375,2412.7,2412.6,0.28378541]
[1730774059915,3.0,2412.4,2412.1,0.56776851]
[1730774060074,3.0,2412.6,2412.2,4.88364561]
[1730774060275,3.0,2412.6,2412.3,0.73807561]
[1730774060579,3.0,2412.6,2412.4,0.28387047]
[1730774060782,7.14498,2412.6,2412.5,0.28387047]
[1730774060982,4.205711,2412.6,2412.0,0.816]
[1730774061190,3.0,2412.3,2412.1,0.73825115]
[1730774061411,3.0,2412.3,2412.2,0.73825115]
[1730774062413,3.0,2412.3,2412.2,0.28393798]
[1730774062781,3.0,2412.3,2412.0,0.816]
[1730774062987,3.0,2412.3,2412.1,0.738578]
[1730774063181,3.0,2412.3,2412.2,0.28406345]
[1730774063377,7.9738,2412.5,2412.2,0.28406345]
[1730774063616,7.9738,2412.5,2412.3,0.28406345]
[1730774063881,3.0,2412.3,2412.0,0.816]
[1730774064102,7.14545,2412.3,2412.1,0.73874393]
[1730774064305,7.14545,2412.3,2412.2,0.28412751]
[1730774064581,3.0,2412.3,2412.2,0.28412751]
[1730774065756,7.14542,2412.3,2412.2,0.28412751]
[1730774066816,7.14542,2412.3,2412.2,0.28432301]
[1730774067179,7.14542,2412.3,2412.2,0.28435898]
[1730774067997,8.357334,2412.3,2412.2,0.28435898]
[1730774068225,8.357334,2412.3,2411.9,0.0593598]
[1730774068226,3.0,2412.0,2411.9,0.0593598]
[1730774071835,3.0,2412.2,2411.9,0.0593598]
[1730774072036,7.14562,2412.2,2411.9,0.0593598]
[1730774073045,3.0,2412.0,2411.9,0.0593598]
[1730774073948,3.0,2412.2,2411.9,0.0593598]
[1730774074323,7.14562,2412.2,2411.9,0.0593598]
[1730774076530,0.15626428,2412.1,2411.9,0.0593598]
[1730774077068,0.15626428,2412.1,2412.0,4.90273]
[1730774077372,0.15626428,2412.1,2412.0,1.96000172]
[1730774077555,4.9418,2412.2,2411.9,0.0593598]
[1730774077729,0.15627411,2412.1,2411.9,0.0593598]
[1730774078445,7.14559,2412.2,2411.9,0.0593598]
[1730774078663,0.15638225,2412.1,2411.9,0.0593598]
[1730774079339,7.14543,2412.3,2411.9,0.0593598]
[1730774079536,0.15638225,2412.0,2411.9,0.0593598]
[1730774079747,7.14543,2412.3,2411.9,0.34350205]
[1730774079961,0.15638225,2412.0,2411.9,0.0593598]
[1730774080171,7.14543,2412.3,2411.9,0.34350232]
[1730774080468,3.0,2412.0,2411.9,0.0593598]
[1730774080766,3.0,2412.1,2411.9,0.0593598]
[1730774080988,7.14576,2412.1,2411.9,0.0593598]
[1730774081151,0.15638225,2412.0,2411.9,0.0593598]
[1730774081789,8.10701225,2412.0,2411.9,0.0593598]
[1730774081994,5.48635248,2412.0,2411.9,0.0593598]
[1730774082199,3.15638225,2412.0,2411.9,0.0593598]
[1730774084391,3.15638225,2412.0,2411.9,0.34384098]
[1730774085298,3.15638225,2412.0,2411.9,0.0593598]
[1730774085460,3.15638225,2412.0,2411.9,0.34389434]
[1730774085821,8.11091225,2412.0,2411.9,0.34389386]
[1730774085991,8.84112848,2412.0,2411.9,0.0593598]
[1730774089938,3.15638225,2412.0,2411.9,0.0593598]
[1730774090436,3.15638225,2412.0,2411.9,0.3440947]
[1730774090637,0.15638225,2412.0,2411.9,0.3440947]
[1730774090795,3.7739,2412.2,2411.9,0.3440947]
[1730774090796,7.91951,2412.2,2411.9,0.3440947]
[1730774091008,0.15591034,2412.1,2411.9,0.0593598]
[1730774091853,3.0,2412.0,2411.9,0.0593598]
[1730774092002,3.0,2412.0,2411.9,0.34412882]
[1730774092209,3.1559595,2412.0,2411.9,0.34412882]
[1730774092715,3.1559595,2412.0,2411.9,0.34414232]
[1730774093206,0.1559595,2412.0,2411.9,0.34414232]
[1730774094746,0.1559595,2412.0,2411.9,0.0593598]
[1730774094911,0.1559595,2412.0,2411.9,0.344144]
[1730774096590,0.1559595,2412.0,2411.9,0.34424211]
[1730774096748,0.1559595,2412.0,2411.9,0.0593598]
[1730774096936,0.1559595,2412.0,2411.9,0.34420019]
[1730774097357,0.9360595,2412.0,2411.9,0.34420019]